Cogmind - Beta 14 *** ADVENTURER MODE // 2024.09.02 @ 18:06:06 Player: Ms. V3-11A Result: Destroyed by Y-54 Guardian with Flak Gun Performance ------------- Evolutions (0) 0 Regions Visited (3) 600 Robots Destroyed (35) 175 Value Destroyed (909) 909 Prototype IDs (3) 60 Alien Tech Used (0) 0 Bonus (0) 0 TOTAL SCORE: 1744 Bonus ------- None Cogmind --------- Core Integrity 0/250 Matter 226/300 Energy 109/125 System Corruption 0% Temperature Hot (206) Movement Treading (160) Location -7/Recycling Parts ------- > --- POWER (1) -------- Light Ion Engine > --- PROPULSION (2) --- Spiked Treads Spiked Treads > --- UTILITY (2) ------ Large Storage Unit Makeshift Kinetic Plating > --- WEAPON (2) ------- Particle Cannon Barrage Gun > --- INVENTORY (15) --- Subdweller Power Source Light Treads Light Treads High-capacity Battery (250) Subdweller Optics Scrap Shield Makeshift System Shield Makeshift System Shield Heavy Assault Rifle Heavy Assault Rifle Multitool Flail Peak State ------------ > --- POWER ------------ Light Nuclear Core > --- PROPULSION ------- Spiked Treads Spiked Treads > --- UTILITY ---------- Large Storage Unit Makeshift Kinetic Plating > --- WEAPON ----------- Barrage Gun Dirty Datajack > --- INVENTORY -------- Light Ion Engine Subdweller Power Source Light Treads Light Treads High-capacity Battery Subdweller Optics Scrap Shield Makeshift System Shield Makeshift System Shield Particle Cannon Heavy Assault Rifle Heavy Assault Rifle Multitool Flail [Rating: 24] Favorites ----------- Power Light Nuclear Core Engine Light Ion Engine Power Core Light Nuclear Core Propulsion Aluminum Leg Treads Spiked Treads Leg Aluminum Leg Utility Large Storage Unit Device Structural Scanner Storage Large Storage Unit Protection Makeshift Kinetic Plating Weapon Heavy Assault Rifle Energy Gun Medium Laser Energy Cannon Particle Cannon Ballistic Gun Heavy Assault Rifle Impact Weapon Flail Special Melee Weapon Dirty Datajack Build | -11 -10 -10 -7 ------- Run | Yrd Mat Sub Rec Slots Evolved . | . . . . Power . | . . . . Propulsion . | . . . . Utility . | . . . . Weapon . | . . . . Parts Attached 24 | . 8 15 1 Power 2 | . 1 1 . Engine 1 | . . 1 . Core 1 | . 1 . . Reactor . | . . . . Propulsion 5 | . . 5 . Treads 5 | . . 5 . Leg . | . . . . Wheel . | . . . . Hover . | . . . . Flight . | . . . . Utility 6 | . 3 3 . Device 3 | . 2 1 . Storage 1 | . 1 . . Processor . | . . . . Hackware . | . . . . Protection 2 | . . 2 . Artifact . | . . . . Weapon 11 | . 4 6 1 Energy Gun . | . . . . Energy Cannon 6 | . 2 3 1 Ballistic Gun 3 | . 1 2 . Ballistic Cannon . | . . . . Launcher . | . . . . Special Weapon . | . . . . Impact Weapon 1 | . 1 . . Slashing Weapon . | . . . . Piercing Weapon . | . . . . Special Melee Weapon 1 | . . 1 . Unidentified Prototypes . | . . . . Parts Lost 3 | . 1 1 1 Power 1 | . . 1 . Propulsion . | . . . . Utility . | . . . . Weapon 2 | . 1 . 1 Highest Loss Streak 1 | . 1 1 1 To Critical Strikes . | . . . . Average Slot Usage (%) 99 | . 99 99 100 Engine 3 | . 7 1 14 Core 10 | . 6 12 . Treads 17 | . . 27 28 Leg 10 | . 28 . . Device 7 | . 13 4 . Storage 14 | . 14 14 14 Protection 6 | . . 9 14 Energy Gun 2 | . 7 . . Energy Cannon 11 | . 6 14 14 Ballistic Gun 14 | . 14 14 14 Peak Build Rating 24 | 6 12 24 17 Average Rating 13 | 6 9 16 16 On Entrance 10 | 6 6 12 17 Naked Turns . | . . . . Heaviest Build 39 | 12 33 39 . Greatest Support 40 | 20 20 40 . Greatest Overweight (x) 1 | . 1 . . Average Overweight (x) . | . . . . Largest Inventory Capacity 15 | 8 15 15 15 Average Capacity 14 | 8 13 15 15 Most Carried 15 | 5 15 15 14 Average Carried 13 | 4 10 14 13 Final Capacity 15 | 8 15 15 15 Final Carried 14 | 4 13 14 13 Class Distribution -------------------- 88% | Mutant 11% | Derelict-Mutant Dominant Class ---------------- Mutant | -10/Materials Mutant | -10/Subcaves Mutant | -7/Recycling Resources | -11 -10 -10 -7 ----------- Run | Yrd Mat Sub Rec Matter Collected 704 | 186 99 419 . Remotely . | . . . . Salvage Created 1213 | . 428 785 . Parts 77 | . 29 48 . Haulers Intercepted 2 | . 2 . . Recyclers Shooed 2 | . 2 . . Parts Field Recycled . | . . . . Retrieved Matter . | . . . . Parts Self-Destructed 24 | . . 24 . Prevented . | . . . . Kills | -11 -10 -10 -7 ------- Run | Yrd Mat Sub Rec Combat Hostiles Destroyed 31 | . 12 19 . Guns 21 | . 11 10 . Cannons 10 | . 1 9 . Classes Destroyed 6 | . 3 3 . Hauler 2 | . 2 . . Turret 2 | . . 2 . Swarmer 13 | . 6 7 . Grunt 6 | . 6 . . Sentry 1 | . . 1 . Subdweller 11 | . . 11 . Best Kill Streak 6 | . 3 6 . Combat Bots Only 4 | . 3 4 . Max Kills in Single Turn 1 | . 1 1 . Gunslinging . | . . . . Exploded . | . . . . Melee . | . . . . Uniques/NPCs Destroyed . | . . . . Combat | -11 -10 -10 -7 -------- Run | Yrd Mat Sub Rec Hostile Shots Fired 207 | . 41 112 54 Missed 66 | . 15 41 10 Damage Taken 1119 | . 223 674 222 Core 253 | . 15 206 32 Absorbed by Shields . | . . . . Ignored by Resistances 383 | . 67 227 89 Regen/Repaired (Parts) 7 | . 7 . . Core Remaining (%) 100 | 100 . . . Volleys Fired 115 | . 31 81 3 Largest 2 | . 2 2 2 Hottest 103 | . 91 103 96 Shots Fired 228 | . 62 160 6 Gun 140 | . 57 80 3 Cannon 88 | . 5 80 3 Launcher . | . . . . Special . | . . . . Kinetic 114 | . 31 80 3 Thermal 114 | . 31 80 3 Explosive . | . . . . Electromagnetic . | . . . . Robot Hit Streak 32 | . 9 32 10 Robot Miss Streak 2 | . 2 1 . Penetration Max . | . . . . Secondary Targets 2 | . 2 . . Max Gunslinging Chain 1 | . 1 . . Shots Hit Robots 140 | . 43 91 6 Core Hits 60 | . 23 36 1 Critical Kills . | . . . . Critical Parts Destroyed . | . . . . Critical Strikes 1 | . 1 . . Burn 1 | . 1 . . Melee Attacks 1 | . 1 . . Impact 1 | . 1 . . Slashing . | . . . . Piercing . | . . . . Sneak Attacks . | . . . . Combat Hostiles . | . . . . Follow-up Attacks . | . . . . Damage Inflicted 2523 | . 715 1701 107 Guns 1283 | . 580 659 44 Cannons 1179 | . 87 1029 63 Explosions . | . . . . Melee . | . . . . Ramming 61 | . 48 13 . Kinetic 1007 | . 304 659 44 Thermal 1455 | . 363 1029 63 Explosive . | . . . . Electromagnetic . | . . . . Impact . | . . . . Slashing . | . . . . Piercing . | . . . . Highest Corruption 1 | . 1 1 . Average Corruption 1 | . 1 1 . Corruption Purged 1 | . . 1 . Corruption Blocked . | . . . . Effects 13 | . 2 11 . Message Errors 2 | . . 2 . Matter Fused 2 | . . 2 . Heat Flow Errors 2 | . . 2 . Energy Discharges 4 | . . 4 . Data Loss (minor) 1 | . 1 . . Data Loss (major) 1 | . . 1 . Misfires 1 | . 1 . . Overload Shots . | . . . . Overflow Damage 3 | . 3 . . Projectiles 3 | . 3 . . Explosions . | . . . . Melee . | . . . . Knockbacks 1 | . . 1 . Impact 1 | . . 1 . Kinetic . | . . . . Secondary . | . . . . Self-Inflicted Damage . | . . . . Shots . | . . . . Rammed 2 | . . 2 . Targets Rammed 9 | . 7 2 . Kicked 7 | . 7 . . Crushed . | . . . . Highest Temperature 170 | . 123 150 170 Average Temperature 35 | . 36 23 111 Received Heat Transfer 480 | . 123 255 102 Siege Activations . | . . . . Robots Corrupted . | . . . . Combat Hostiles . | . . . . Parts Fried . | . . . . Impact Corruptions . | . . . . Robots Melted . | . . . . Combat Hostiles . | . . . . Parts Melted 4 | . 2 2 . Heat Transferred 2923 | . 999 1813 111 Parts Sabotaged . | . . . . Parts Stolen . | . . . . Parts Stripped . | . . . . Power Chain Reactions . | . . . . Alert | -11 -10 -10 -7 ------- Run | Yrd Mat Sub Rec Peak Influence 164 | . 164 . . Initial . | . . . . Average 61 | . 62 . . Maximum Alert Level . | . . . . Low Security (%) 100 | 100 100 . 100 Level 1 . | . . . . Level 2 . | . . . . Level 3 . | . . . . Level 4 . | . . . . Level 5 . | . . . . High Security . | . . . . Max Security . | . . . . Squads Dispatched 1 | . 1 . . Investigation 1 | . 1 . . Extermination . | . . . . Reinforcement . | . . . . Assault . | . . . . Garrison . | . . . . Intercept . | . . . . Searches Triggered . | . . . . Construction Impeded . | . . . . Haulers Reinforced . | . . . . Active Scanning Responses . | . . . . Cargo Convoy Interrupts . | . . . . Stealth | -11 -10 -10 -7 --------- Run | Yrd Mat Sub Rec Distress Signals 2 | . 2 . . Communications Jammed . | . . . . Distress Signals . | . . . . Times Spotted 47 | . 23 22 2 Peak Tracking Total 6 | . 4 6 2 Tactical Retreats 3 | . 1 2 . Traps | -11 -10 -10 -7 ------- Run | Yrd Mat Sub Rec Traps Triggered 3 | . 3 . . Indirectly . | . . . . Trap Hack Attempts . | . . . . Triggered . | . . . . Disarmed . | . . . . Reprogrammed . | . . . . Reused . | . . . . Traps Extracted . | . . . . Installed . | . . . . Triggered . | . . . . Machines | -11 -10 -10 -7 ---------- Run | Yrd Mat Sub Rec Machines Disabled . | . . . . Max in Single Turn . | . . . . Machines Repaired . | . . . . Machines Dismantled . | . . . . Machines Sabotaged . | . . . . Overloaded Fab Kills . | . . . . Hacking | -11 -10 -10 -7 --------- Run | Yrd Mat Sub Rec Machines Accessed 10 | . 9 1 . Terminals 7 | . 7 . . Fabricators . | . . . . Repair Stations 1 | . 1 . . Recycling Units 1 | . 1 . . Scanalyzers . | . . . . Garrison Access . | . . . . Total Hacks 28 | . 23 5 . Successful 22 | . 17 5 . Failed 6 | . 6 . . Catastrophic . | . . . . Database Lockouts . | . . . . Manual 16 | . 16 . . Terminals 19 | . 19 . . Fabricators . | . . . . Repair Stations 2 | . 2 . . Recycling Units 2 | . 2 . . Scanalyzers . | . . . . Garrison Access . | . . . . Terminal Hacks 10 | . 5 5 . Record 5 | . . 5 . Robot Analysis 2 | . 2 . . Prototype ID Bank 2 | . 2 . . Locate Traps 1 | . 1 . . Fabricator Hacks . | . . . . Repair Station Hacks 2 | . 2 . . Scan Component 1 | . 1 . . Repair 1 | . 1 . . Recycling Unit Hacks 1 | . 1 . . Retrieve Components 1 | . 1 . . Scanalyzer . | . . . . Garrison Access Hacks . | . . . . Unauthorized Hacks 9 | . 9 . . Terminals 8 | . 8 . . Botnet 3 | . 3 . . Skim 5 | . 5 . . Fabricators . | . . . . Repair Stations . | . . . . Recycling Units 1 | . 1 . . Tunnel 1 | . 1 . . Scanalyzers . | . . . . Garrison Access . | . . . . Data Cores Recovered . | . . . . Used . | . . . . Hacking Detections 8 | . 8 . . Full Trace Events . | . . . . Feedback Events . | . . . . Feedback Blocked . | . . . . Robot Schematics Acquired . | . . . . Robots Built . | . . . . Authchips . | . . . . Time . | . . . . Total Robot Build Rating . | . . . . Part Schematics Acquired . | . . . . Parts Built . | . . . . Authchips . | . . . . Time . | . . . . Total Part Build Rating . | . . . . Parts Repaired 1 | . 1 . . Time 26 | . 26 . . Parts Recycled . | . . . . Recycled Matter . | . . . . Retrieved Matter . | . . . . Retrieved Components 4 | . 4 . . Parts Scanalyzed . | . . . . Part Schematics Acquired . | . . . . Parts Damaged . | . . . . Bothacking | -11 -10 -10 -7 ------------ Run | Yrd Mat Sub Rec Used RIF Installer . | . . . . Robots Hacked . | . . . . Non-combat . | . . . . Combat . | . . . . Robot Hacks Applied . | . . . . Relay Couplers Released . | . . . . Fabnet Peak Effective % . | . . . . Robots Rewired . | . . . . Allies Hacked . | . . . . Hacks Repelled . | . . . . Allies | -11 -10 -10 -7 -------- Run | Yrd Mat Sub Rec Total Allies . | . . . . Largest Group . | . . . . Highest-Rated Group . | . . . . Highest-Rated Ally . | . . . . Total Orders . | . . . . Ally Attacks . | . . . . Total Damage . | . . . . Kills . | . . . . Allies Corrupted . | . . . . Allies Melted . | . . . . Intel | -11 -10 -10 -7 ------- Run | Yrd Mat Sub Rec Robot Analysis Total 2 | . 2 . . Derelict Logs Recovered 1 | . . 1 . Drone Launches . | . . . . Drone Recoveries . | . . . . Exploration | -11 -10 -10 -7 ------------- Run | Yrd Mat Sub Rec Turns Passed 4436 | 3 1604 2821 8 Spaces Moved 2331 | 2 744 1585 . Core . | . . . . Treads 1585 | . . 1585 . Legs 746 | 2 744 . . Wheels . | . . . . Hover . | . . . . Flight . | . . . . Fastest Speed 120 | 120 120 160 . Average Speed 160 | 120 160 160 . Slowest Speed 190 | 120 190 160 . Overloaded Moves . | . . . . Propulsion Burnouts . | . . . . Robots Hopped . | . . . . Cave-ins Triggered . | . . . . Exploration Rate (%) 37 | 2 90 57 1 Regions Visited 3 Branch Regions 2 Pre-discovered Areas 4 | . 2 2 . Known Exits Taken 1 | . 1 . . Unknown Exits Taken 2 | 1 . 1 . Scrap Searched 15 | . . 15 . Spaces Dug 1 | . 1 . . Terrain Destroyed 2 | . 1 1 . Melee 1 | . 1 . . Projectile 1 | . . 1 . AOE . | . . . . Terrain Rammed . | . . . . Walls Destroyed . | . . . . Machines Disabled . | . . . . Actions | -11 -10 -10 -7 --------- Run | Yrd Mat Sub Rec Total 2808 | 3 1086 1715 4 Wait 283 | . 277 6 . Move 2328 | 1 743 1584 . Hop . | . . . . Pick Up 22 | . 13 9 . Fast Attach 8 | . 2 6 . Attach 5 | . 1 3 1 Detach . | . . . . Swap 11 | . 5 6 . Drop 26 | 2 6 18 . Fire 115 | . 31 81 3 Melee 1 | . 1 . . Ram . | . . . . Kick 7 | . 7 . . Crush 2 | . . 2 . Escape Stasis . | . . . . Rewire . | . . . . Trap . | . . . . Miscellaneous . | . . . . Route ------- -11/Scrapyard -10/Materials (discovered 6 exits: [*Mat x3] / [*Min x2] / *Sub) -10/Subcaves -7/Recycling History --------- Turn | Location | Event 2 | -11/Scrapyard | Discovered new exit (range 1) 4 | -11/Scrapyard | Entered Materials 133 | -10/Materials | Discovered new exit (range 14) 246 | -10/Materials | Discovered new exit (range 13) 303 | -10/Materials | Build established: Mutant 594 | -10/Materials | Discovered new exit (range 16) 838 | -10/Materials | Discovered new exit (range 8) 1010 | -10/Materials | Repaired Structural Scanner 1116 | -10/Materials | Discovered new exit (range 14) 1171 | -10/Materials | Learned 2 Storage zone layouts 1206 | -10/Materials | Learned location of Mines (-9) 1233 | -10/Materials | Learned location of 2 exits from Mines 1248 | -10/Materials | Learned Storage security intel 1260 | -10/Materials | Identified exit to Subcaves 1608 | -10/Materials | Entered Subcaves 2005 | -10/Subcaves | Disturbed a concealed Subdweller 2420 | -10/Subcaves | Shifting Twisted Machinery released Battle Cannon 2429 | -10/Subcaves | Learned Materials emergency access door positions 2432 | -10/Subcaves | Shifting Twisted Machinery released Mak. Kinetic Plating 2733 | -10/Subcaves | Visited Clippyterm 2738 | -10/Subcaves | Learned location of Extension (-4) 2738 | -10/Subcaves | Learned location of Section 7 (-3) 2920 | -10/Subcaves | Core integrity fell below 50% 4193 | -10/Subcaves | Build established: Derelict-Mutant 4220 | -10/Subcaves | Discovered new exit (range 15) 4232 | -10/Subcaves | A swath of the cavern ceiling suddenly collapsed 4359 | -10/Subcaves | Core integrity fell below 20% 4429 | -10/Subcaves | Entered Recycling 4437 | -7/Recycling | Destroyed by Y-54 Guardian with Flak Gun Last Messages --------------- 04201_ S-10 Pest destroyed. 04202_ Flight Unit fries itself beyond repair. 04204_ S-10 Pest destroyed. 04205_ Flight Unit fries itself beyond repair. 04207_ Lgt. Assault Rifle fries itself beyond repair. 04208_ Acquired 12 matter. 04215_ Flight Unit fries itself beyond repair. 04217_ Autobeam Turret destroyed. 04220_ EXIT=FOUND 04222_ Lgt. Assault Rifle fries itself beyond repair. 04224_ Autobeam Turret destroyed. 04230_ Autobeam fries itself beyond repair. A swath of the cavern ceiling suddenly collapses. 04364_ Sub. Optics melted. 04364_ 5J-PST(R) destroyed. 04399_ Acquired 11 matter. LOCATION=UNKNOWN GOAL=ESCAPE 04430_ Y-54 Guardian springs to life. 04434_ Particle Cannon destroyed. Map ----- +----------------------------------------------------+ | ???????????????????????????????????? | | ???????????????????????????????????? | | ???????????????????????????????????? | | ???????????????????????????????????? | | ???????????????????????????????????? | | ???????????????????????????????????? | | ???????????????????????????????????? | | ???????????????????????????????????? | | ???????????????????????????????????? | | ???????????????????????????????????? | | ???????????????????????????????????? | | ???????????????????????????????????? | | ???????????????????????????????????? | | ???????????????????????????????????? | | ???????????????????????????????????? | | ???????????????????????????????????? | | ?????????######????????????????????? | | ?????????# ?????????????????????? | | ?????????# ?????????????????????? | | ?????????# ?????????????????????? | | ?????????# #?????????????????????? | | ????????## ##????????????????????? | | ????????? ?????????????????????? | | ?????????#Y Y#?????????????????????? | | ?????????# #?????????????????????? | | ?????????# @ #?????????????????????? | | ?????????# #?????????????????????? | | ?????????#####?????????????????????? | | ???????????????????????????????????? | | ???????????????????????????????????? | | ???????????????????????????????????? | | ???????????????????????????????????? | | ???????????????????????????????????? | | ???????????????????????????????????? | | ???????????????????????????????????? | | | | | | | | | | | | | | | | | | | | | | | | | | | | | | | +----------------------------------------------------+ Best States ------------- Heat Dissipation 25 Energy Generation 14 Energy Capacity 160 Matter Stores 300 Matter Capacity 300 Sight Range 16 Terrain Scan Density 10 Armor Coverage 100 Resistance: KI 30 Resistance: TH 20 Resistance: EX 20 Resistance: EM 20 Resistance: I 20 Resistance: S 20 Resistance: P 20 Evasion (%) 55 Recoil Reduction 2 Offensive Hacking 10 Item Schematics ----------------- None Robot Schematics ------------------ None Fabricated ------------ Nothing Alien Tech Used ----------------- None Achievements -------------- None Challenges ------------ None Game ------ Seed CryofiberGravmagEdition Manual? 0 Play Time 00:19:33 Cumulative 338.9 hours Start 2024.09.02 @ 17:46:01 End 2024.09.02 @ 18:06:06 Sessions 1 Manual Loads 0 Difficulty Adventurer Special Mode None Game No. 259 Rogue 63 Adventurer 170 Explorer 26 Win Type - Total 1 Types 1/0/0/0/0/0/0/0/0 Lore% 77 Gallery% 75 Achievement% 68 Wizard Run 0 Options --------- Layout 2 ASCII 0 Keyboard 0 Movement Mouse Keybinds 0 Fullscreen 0 Font 18/CogNarrow Map View 64x51 Zoom Use 0% Tactical HUD 1 Map Filters NONE Filters BRIGHTNESS(115)|SATURATION(100)|LOW_CONTRAST(0,16,30) Steam 1 RUN: 1eb320d9-c75d-4441-9333-1905587f1c40